[Event "Chinese League Div-A Rapid 2022"]
[Site "Fuling,Chongqing"]
[Date "2022.09.06"]
[Round "1.6"]
[White "Xu, Xiangyu"]
[Black "Wei, Yi"]
[Result "1/2-1/2"]
[ECO "D41"]
[WhiteElo "2571"]
[BlackElo "2727"]
[Annotator "TA"]
[PlyCount "78"]
[EventDate "2022.09.07"]
[EventType "team-tourn"]
[EventCountry "CHN"]
[SourceTitle "playchess.com"]
[Source "ChessBase"]
[SourceQuality "1"]
[TimeControl "1500+10"]

{[%evp 11,78,34,25,32,33,-25,25,23,24,27,27,22,30,27,25,20,41,41,39,39,35,37,35,35,29,35,39,37,41,40,40,39,35,0,3,8,4,0,59,58,58,62,65,65,65,65,65,58,91,72,72,72,72,65,65,46,88,54,93,93,93,46,46,0,95,0,46,0,96]} 1. d4 {[%emt 0:00:03]} Nf6 {[%emt 0:00:08]} 2. Nf3 {[%emt 0:00:12]} d5 {[%emt 0:00:18]} 3. c4 {[%emt 0:00:03]} e6 {[%emt 0:00:01]} 4. Nc3 {[%emt 0:00:09]} c5 {[%emt 0:00:21]} 5. cxd5 {[%emt 0:00:58]} cxd4 {[%emt 0:00:03]} 6. Qxd4 {[%emt 0:00:06]} exd5 {[%emt 0:00:02]} 7. e4 {[%emt 0:00:09] D41: Queen's Gambit Declined: Semi-Tarrasch with 5 cxd5.} dxe4 {[%emt 0:00:27]} 8. Qxd8+ {[%emt 0:00:05]} Kxd8 {[%emt 0:00:02]} 9. Ng5 {[%emt 0:00:07][%csl LRe4,LRf7] White has an edge.} Be6 {[%emt 0:00:09]} 10. Nxe6+ {[%emt 0:00:36]} fxe6 {[%emt 0:00:02]} 11. Bg5 {[%emt 0:00:07]} Nc6 {[%emt 0:00:19] 11...h6 is the modern continuation.} 12. Bc4 {[%emt 0:00:29]} Ke7 {[%emt 0:00:15]} 13. Nxe4 {[%emt 0:00:16]} Kf7 {[%emt 0:00:07]} 14. Bxf6 {[%emt 0:01:43]} gxf6 {[%emt 0:00:39]} 15. O-O-O {[%emt 0:00:05]} Rd8 {[%emt 0:00:13]} ({Resist} 15... Ne5 16. Bb3 $16) 16. Rxd8 {[%emt 0:00:17]} Nxd8 {[%emt 0:00:02]} 17. Rd1 {[%emt 0:00:08]} Be7 {[%emt 0:00:13]} 18. Rd7 {[%emt 0:00:33]} f5 {[%emt 0:00:03]} 19. Nd6+ {[%emt 0:00:06]} Kf6 {[%emt 0:00:02]} 20. Nxb7 {[%emt 0:00:19]} Nxb7 {[%emt 0:00:03]} 21. Rxb7 $14 {[%emt 0:00:04][%mdl 4096] Endgame KRB-KRB} Bc5 {[%emt 0:00:07]} 22. Rc7 {[%emt 0:00:40]} Bxf2 {[%emt 0:00:03]} 23. Rc6 {[%emt 0:00:07]} Re8 {[%emt 0:00:24]} 24. b4 {[%emt 0:00:21][%cal Bb2b4,Bb4b5,Bb5c6][%mdl 32]} Rb8 {[%emt 0:00:07]} (24... Re7 $11) 25. Rxe6+ {[%emt 0:00:33]} Kg5 {[%emt 0:00:03] [#] Strongly threatening ...Rc8.} 26. b5 $1 {[%emt 0:00:07]} Rc8 {[%emt 0:00:03]} 27. Rc6 {[%emt 0:00:04]} Rxc6 {[%emt 0:00:03]} 28. bxc6 {[%emt 0:00:04] c7 is the strong threat. KB-KB} Bb6 {[%emt 0:00:03] [#]} 29. h3 $146 {[%emt 0:00:14]} ({Predecessor:} 29. Kc2 Bc7 30. Kb3 f4 31. Ba6 Kf6 32. Kc4 h6 33. Kd5 Ke7 34. a4 Kf6 35. h3 {½-½ (46) Ding,L (2799)-Wei,Y (2729) Hangzhou 2022}) 29... f4 {[%emt 0:00:18]} 30. Bd5 {[%emt 0:00:15]} h6 {[%emt 0:00:03]} 31. Kc2 {[%emt 0:00:04]} Kf5 {[%emt 0:00:07]} 32. Bf3 {[%emt 0:00:09]} Ke5 {[%emt 0:00:10]} 33. Be2 {[%emt 0:00:15]} a5 {[%emt 0:00:16]} 34. Bf3 {[%emt 0:00:50]} Bc7 {[%emt 0:00:01]} 35. Kd3 {[%emt 0:00:11]} Bb6 {[%emt 0:00:02]} 36. Be2 {[%emt 0:00:08]} (36. Kc4 $16) 36... Kd5 {[%emt 0:00:18]} 37. Bf3+ {[%emt 0:00:02]} (37. Bd1 $14 {should be considered.}) 37... Ke5 $1 $16 {[%emt 0:00:02]} 38. Be2 {[%emt 0:00:02]} (38. Kc4 $16) 38... Kd5 $14 {[%emt 0:00:01]} 39. Bf3+ {[%emt 0:00:07]} (39. Bd1 $14) 39... Ke5 $1 {[%emt 0:00:16] Weighted Error Value: White=0.12 (very precise) /Black=0.08 (flawless)} 1/2-1/2

[Event "Chinese League Div-A Rapid 2022"]
[Site "Fuling,Chongqing"]
[Date "2022.09.06"]
[Round "1.7"]
[White "Li, Di"]
[Black "Lin, Chen"]
[Result "1-0"]
[ECO "E95"]
[WhiteElo "2575"]
[BlackElo "2485"]
[Annotator "TA"]
[PlyCount "135"]
[EventDate "2022.09.07"]
[EventType "team-tourn"]
[EventCountry "CHN"]
[SourceTitle "playchess.com"]
[Source "ChessBase"]
[SourceQuality "1"]
[TimeControl "1500+10"]

{[%evp 16,135,52,52,100,96,101,94,100,89,80,82,78,64,75,71,81,82,90,72,83,71,72,63,74,70,74,69,87,86,86,86,95,102,100,95,95,95,92,80,80,80,95,87,149,183,253,261,256,241,314,307,307,293,301,261,288,276,228,136,137,137,141,82,86,83,80,25,25,25,25,25,25,25,25,25,92,77,102,77,112,97,263,258,252,163,163,164,185,185,874,131,131,131,452,0,0,0,0,0,0,0,0,0,0,0,0,0,1146,971,2594,1772,29985,29986,29986,12833,29986,12833,12831,10674,2069,896]} 1. c4 {[%emt 0:00:02]} Nf6 {[%emt 0:00:03]} 2. Nc3 {[%emt 0:00:07]} g6 {[%emt 0:00:04]} 3. d4 {[%emt 0:00:06]} Bg7 {[%emt 0:00:02]} 4. e4 {[%emt 0:00:04]} O-O {[%emt 0:00:04]} 5. Nf3 {[%emt 0:00:44]} d6 {[%emt 0:00:03]} 6. Be2 {[%emt 0:00:05]} e5 {[%emt 0:00:09]} 7. O-O {[%emt 0:00:07]} Nbd7 {[%emt 0:00:18]} 8. Re1 {[%emt 0:00:38]} c6 {[%emt 0:00:31] 8...Re8 might become the main line.} 9. d5 {[%emt 0:00:03]} c5 {[%emt 0:00:14] E95: King's Indian: Classical: 7...Nbd7 8 Re1.} (9... Nc5 $14) 10. Bg5 $16 {[%emt 0:00:19]} h6 {[%emt 0:00:07]} 11. Bd2 {[%emt 0:00:22] [#]} a6 $146 {[%emt 0:00:22] White is better.} ({Predecessor:} 11... Nh7 12. b3 Ndf6 13. Qc1 h5 14. g3 Ne8 15. Nh4 Bf6 16. Ng2 Ng5 17. Rf1 Nh3+ {1-0 (38) Radovanovic,N (2413)-Damljanovic,B (2464) Arandjelovac 2022}) 12. Bd3 {[%emt 0:00:14]} Ne8 {[%emt 0:00:44]} 13. Qc1 {[%emt 0:00:15]} Kh7 {[%emt 0:00:16]} 14. g3 {[%emt 0:00:18]} Ndf6 {[%emt 0:01:15]} 15. Rb1 {[%emt 0:01:14]} a5 {[%emt 0:00:42]} 16. Nh4 {[%emt 0:01:10]} Bh3 {[%emt 0:00:59]} 17. a3 {[%emt 0:01:32]} Nc7 {[%emt 0:00:13]} 18. Qc2 {[%emt 0:00:34]} b6 {[%emt 0:00:46]} 19. Qd1 {[%emt 0:00:49]} Bg4 {[%emt 0:01:03]} 20. f3 {[%emt 0:00:15]} Bd7 {[%emt 0:00:03]} 21. Qe2 {[%emt 0:01:55]} a4 {[%emt 0:01:17]} 22. b4 {[%emt 0:00:57]} axb3 {[%emt 0:01:41]} 23. Rxb3 {[%emt 0:00:02]} Ra6 {[%emt 0:00:03]} 24. Reb1 {[%emt 0:00:05]} Na8 {[%emt 0:00:39]} 25. Ng2 {[%emt 0:00:12][%cal Bh4g2,Bg2e3,Be3f5][%mdl 32]} Re8 {[%emt 0:00:21]} 26. Bc2 {[%emt 0:00:39]} Qe7 {[%emt 0:00:52]} 27. g4 {[%emt 0:02:07][%cal Bg3g4,Bg4g5][%mdl 32]} Rb8 {[%emt 0:01:26]} 28. h4 {[%emt 0:02:03]} Qd8 {[%emt 0:00:54]} 29. Ne3 {[%emt 0:00:27]} h5 {[%emt 0:02:13]} (29... Kg8 $142) 30. g5 {[%emt 0:00:24]} Ng8 {[%emt 0:00:31] [#]} (30... Ne8 $142 31. Nf5 Bf8) 31. Nf5 $1 $18 {[%emt 0:00:10][%mdl 512]} Bf8 {[%emt 0:05:19] [#]} 32. f4 $1 {[%emt 0:01:21]} Qe8 {[%emt 0:00:05] [#]} (32... Nc7 33. Rf1) 33. Nb5 $1 {[%emt 0:01:46]} Bxb5 {[%emt 0:01:57]} 34. cxb5 {[%emt 0:00:10]} Ra7 {[%emt 0:00:12] [#]} 35. fxe5 $1 {[%emt 0:01:29]} dxe5 {[%emt 0:00:04]} 36. Ne3 {[%emt 0:01:01]} Ne7 {[%emt 0:02:07]} 37. Rf1 {[%emt 0:01:49]} (37. Qh2 $18) 37... Nc8 $16 {[%emt 0:00:19]} 38. Rf6 {[%emt 0:00:00] 0x0.0024fecdcd7edp-1022s more active pieces. The black rooks are badly placed.} Nd6 {[%emt 0:00:12] [#]} 39. Rxd6 $1 {[%emt 0:01:52][%mdl 512]} Bxd6 {[%emt 0:00:03]} 40. Nc4 {[%emt 0:00:03]} Bf8 {[%emt 0:00:42]} 41. Bc3 {[%emt 0:01:05]} ({White should play} 41. Rb1 $16) 41... Ra4 $11 {[%emt 0:00:02]} 42. Rb1 {[%emt 0:00:34]} ({Don't play} 42. Bxe5 Rxc4 43. Bxb8 Rxc2 44. Qxc2 Qxb8 $17) 42... Rxc4 {[%emt 0:00:38]} 43. Qxc4 {[%emt 0:00:01][%cal Od5d6]} Nc7 {[%emt 0:00:04]} 44. a4 {[%emt 0:00:49]} Qd7 {[%emt 0:00:01]} 45. Qe2 {[%emt 0:00:20]} c4 {[%emt 0:00:15]} (45... Bg7 $1 $11) 46. Kg2 {[%emt 0:00:59]} ({Much worse is} 46. Bxe5 Re8 47. Bxc7 Qxc7 $11) 46... Bd6 {[%emt 0:00:51]} 47. Rf1 {[%emt 0:00:07]} Kg8 {[%emt 0:00:09]} 48. Bd1 {[%emt 0:00:12]} Ra8 $2 {[%emt 0:00:11]} (48... Rc8 $16 {was necessary.}) 49. Qxc4 $18 {[%emt 0:00:18]} Ne8 {[%emt 0:00:18]} 50. Qd3 {[%emt 0:01:15]} Rc8 {[%emt 0:00:05]} 51. Bb2 {[%emt 0:00:08]} Qe7 {[%emt 0:00:29]} 52. Bb3 {[%emt 0:00:13]} Bc5 $2 {[%emt 0:00:23] [#]} (52... Rc5 53. Qe3 Qd7) 53. Qh3 $2 {[%emt 0:00:16]} (53. Rxf7 $3 $18 {[%mdl 512]} Qxf7 54. d6 Bxd6 55. Bxf7+ Kxf7 56. Bxe5 $1 {[%mdl 512]}) 53... Nd6 $16 {[%emt 0:00:04]} 54. Rf6 {[%emt 0:00:05][%cal Of6d6] And now Rxd6! would win.} Rc7 $2 {[%emt 0:00:12][%mdl 8192] [#]} (54... Qe8 $16 55. Qf3 Qe7) 55. Qf3 $2 {[%emt 0:00:10]} (55. Qg3 $1 $18) 55... Bd4 $1 $11 {[%emt 0:00:14]} 56. Bxd4 {[%emt 0:00:16]} exd4 {[%emt 0:00:02]} 57. Qf4 {[%emt 0:00:02]} Rc3 $1 {[%emt 0:01:07]} 58. Rxd6 {[%emt 0:00:18]} Rxb3 {[%emt 0:00:01][%mdl 4096] Endgame KQR-KQR} 59. e5 {[%emt 0:00:04] Qf6 is the strong threat.} d3 {[%emt 0:00:34][%cal Od3d2] aiming for ...d2!} 60. Kf2 $36 {[%emt 0:00:16][%mdl 2048] Hoping for Qf6. Black is under pressure.} ({Not} 60. Rxb6 $2 d2 61. Qxd2 Qxe5 $19) 60... d2 {[%emt 0:00:10]} 61. Ke2 {[%emt 0:00:06]} Rd3 $2 {[%emt 0:00:09][%mdl 8192]} 62. Kd1 $18 {[%emt 0:00:05] Threatens to win with Qf6.} Qc7 {[%emt 0:00:16]} 63. Rc6 {[%emt 0:00:01]} Qd8 {[%emt 0:00:07]} 64. e6 {[%emt 0:00:10]} fxe6 {[%emt 0:00:14]} 65. dxe6 {[%emt 0:00:12]} (65. Qe4 $142 Qf8 66. Qxd3 Qg7 67. dxe6 Qa1+ 68. Kxd2 Qb2+ 69. Ke3 Qe5+ 70. Kf3) 65... Qe8 {[%emt 0:00:14]} 66. Qf7+ {[%emt 0:00:20]} (66. Qc4 $142 Rf3 67. Rc8 Rf1+ 68. Kxd2 Qxc8 69. Qxc8+ Rf8 70. Qd7 Rf2+ 71. Ke3) 66... Qxf7 {[%emt 0:00:02]} 67. exf7+ {[%emt 0:00:01][%mdl 64] Discovered Attack} Kxf7 {[%emt 0:00:01]} 68. Rf6+ {[%emt 0:00:02] Weighted Error Value: White=0.38/Black=0.25 (precise)} (68. Rxb6 $142 Ra3 69. Ra6) 1-0

[Event "Chinese League Div-A Rapid 2022"]
[Site "Fuling,Chongqing"]
[Date "2022.09.06"]
[Round "1.8"]
[White "Zhao, Yuanhe"]
[Black "Chen, Qi b"]
[Result "1/2-1/2"]
[ECO "D79"]
[WhiteElo "2440"]
[BlackElo "2485"]
[Annotator "TA"]
[PlyCount "60"]
[EventDate "2022.09.07"]
[EventType "team-tourn"]
[EventCountry "CHN"]
[SourceTitle "playchess.com"]
[Source "ChessBase"]
[SourceQuality "1"]
[TimeControl "1500+10"]

{[%evp 24,58,11,13,10,9,0,0,0,0,0,0,0,0,0,0,0,0,0,0,0,0,0,0,0,0,0,0,0,0,0,0,0,0,0,0,0]} 1. d4 {[%emt 0:00:05]} Nf6 {[%emt 0:00:04]} 2. Nf3 {[%emt 0:00:05]} g6 {[%emt 0:00:10]} 3. g3 {[%emt 0:00:26]} Bg7 {[%emt 0:00:03]} 4. Bg2 {[%emt 0:00:02]} O-O {[%emt 0:00:03]} 5. O-O {[%emt 0:00:04]} d5 {[%emt 0:01:05]} 6. c4 {[%emt 0:01:01]} c6 {[%emt 0:00:06]} 7. cxd5 {[%emt 0:00:26]} cxd5 {[%emt 0:00:02]} 8. Nc3 {[%emt 0:00:15]} Ne4 {[%emt 0:01:07]} 9. Ne5 {[%emt 0:00:52]} Nxc3 {[%emt 0:00:06]} 10. bxc3 {[%emt 0:00:02]} Nc6 {[%emt 0:00:13]} 11. Nxc6 {[%emt 0:00:09]} bxc6 {[%emt 0:00:02]} 12. Qa4 {[%emt 0:00:03]} Qb6 {[%emt 0:00:27]} 13. Ba3 {[%emt 0:00:31] The position is equal.} (13. e4 {is interesting.} Qa6 14. Qb4 dxe4 15. Bxe4 e5 16. dxe5 Bxe5 17. Qc5) 13... Qa6 {[%emt 0:00:26] D79: Fianchetto Grünfeld: Symmetrical Variation (6 0-0 c6 7 cxd5 cxd5).} 14. Qxa6 {[%emt 0:00:04]} Bxa6 {[%emt 0:00:02]} 15. Rfe1 {[%emt 0:00:20]} Rfe8 {[%emt 0:01:37]} 16. Bf1 {[%emt 0:00:03] is the legacy move (16.e3).} Bf8 {[%emt 0:01:53]} 17. e3 {[%emt 0:01:52]} Bxf1 {[%emt 0:00:29]} 18. Kxf1 {[%emt 0:00:02]} e6 {[%emt 0:00:13]} 19. Bxf8 {[%emt 0:00:43]} Kxf8 $11 {[%emt 0:00:04][%mdl 4096] Endgame KRR-KRR} 20. Rab1 {[%emt 0:00:03]} Rab8 {[%emt 0:00:16]} 21. Ke2 {[%emt 0:00:30]} Ke7 {[%emt 0:00:14]} 22. Kd3 {[%emt 0:00:16]} Rb6 {[%emt 0:01:49]} 23. Rb3 {[%emt 0:00:36]} Reb8 {[%emt 0:00:05]} 24. Reb1 {[%emt 0:00:03]} Kd6 {[%emt 0:00:07]} 25. c4 {[%emt 0:00:25] [#] Black must now prevent c5+.} c5 {[%emt 0:00:27]} 26. cxd5 {[%emt 0:00:23]} Rxb3+ {[%emt 0:00:11]} 27. axb3 {[%emt 0:00:04]} Kxd5 {[%emt 0:00:03][%cal Ob8b3]} 28. dxc5 {[%emt 0:00:07]} Kxc5 {[%emt 0:00:05]} 29. Kc3 {[%emt 0:00:10]} a5 {[%emt 0:01:29] [#] An uneventful encounter.  Weighted Error Value: White=0.00 (flawless) /Black=0.00 (flawless)} {Predecessor:} 30. Rd1 $146 Kc6 {½-½ (30) Petrosian,T (2615)-Swiercz,D (2638) Saint Louis 2017} 1/2-1/2

[Event "Chinese League Div-A Rapid 2022"]
[Site "Fuling,Chongqing"]
[Date "2022.09.06"]
[Round "1.9"]
[White "Guo, Qi"]
[Black "Chu, Ruotong"]
[Result "1-0"]
[ECO "D27"]
[WhiteElo "2406"]
[BlackElo "2185"]
[Annotator "TA"]
[PlyCount "121"]
[EventDate "2022.09.07"]
[EventType "team-tourn"]
[EventCountry "CHN"]
[SourceTitle "playchess.com"]
[Source "ChessBase"]
[SourceQuality "1"]
[TimeControl "1500+10"]

{[%evp 19,121,49,51,45,53,48,58,14,15,10,10,17,11,15,31,29,69,16,30,8,8,13,19,22,35,31,40,21,21,10,46,22,65,40,70,64,66,72,71,65,92,81,85,85,76,16,14,14,14,10,9,12,18,0,0,0,0,0,14,0,20,24,39,14,28,16,17,18,87,81,162,158,159,159,320,316,315,274,303,268,326,303,553,512,689,592,591,591,5065,2920,2825,2377,2078,1122,1082,414,414,414,29981,29982,29982,29983,29984,29985]} 1. d4 {[%emt 0:00:03]} d5 {[%emt 0:00:10]} 2. c4 {[%emt 0:00:06]} dxc4 {[%emt 0:00:03]} 3. Nf3 {[%emt 0:00:02]} Nf6 {[%emt 0:00:27]} 4. e3 {[%emt 0:00:02]} e6 {[%emt 0:00:01]} 5. Bxc4 {[%emt 0:00:02]} a6 {[%emt 0:00:06]} 6. O-O {[%emt 0:00:05]} c5 {[%emt 0:00:01]} 7. Bd3 {[%emt 0:00:04]} Nc6 {[%emt 0:02:32]} 8. Nc3 {[%emt 0:00:02]} Be7 {[%emt 0:01:30]} 9. dxc5 {[%emt 0:00:03]} Bxc5 {[%emt 0:00:21]} 10. a3 {[%emt 0:00:02]} O-O {[%emt 0:02:14]} 11. b4 {[%emt 0:00:03] D27: Queen's Gambit Accepted: Classical main line: 7 e4!? and 7 a4.} Ba7 {[%emt 0:03:44]} 12. Bb2 {[%emt 0:00:25]} e5 {[%emt 0:00:37] [#]} 13. Ne4 $146 {[%emt 0:05:13] Threatening Qc2. White is slightly better.} ({Predecessor:} 13. h3 h6 14. Rc1 Qe7 15. Ne4 Bf5 16. Nxf6+ Qxf6 17. b5 axb5 18. Bxb5 Rfd8 19. Qe2 {½-½ (31) Lalith,B (2529)-Guliyev,N (2545) Paris 2018}) 13... Bf5 {[%emt 0:02:04]} 14. Qb1 {[%emt 0:02:17] [#] Black must now prevent Nxf6+.} Nxe4 {[%emt 0:01:55]} 15. Bxe4 {[%emt 0:00:02]} Bxe4 {[%emt 0:00:03]} 16. Qxe4 {[%emt 0:00:02]} f6 {[%emt 0:00:22]} 17. a4 {[%emt 0:01:13]} Qb6 {[%emt 0:01:54] Inhibits b5.} 18. Bc3 {[%emt 0:03:00] White is more active.} (18. Qc4+ $14 Kh8 19. Ba3) 18... Ne7 {[%emt 0:01:10]} 19. Rfb1 {[%emt 0:00:33]} Qc6 {[%emt 0:04:18]} 20. Qxc6 {[%emt 0:00:21]} bxc6 {[%emt 0:00:20]} 21. Be1 {[%emt 0:02:47]} Rab8 {[%emt 0:04:09]} 22. Nd2 {[%emt 0:01:42]} Bb6 {[%emt 0:00:01]} 23. Nc4 {[%emt 0:00:04]} Bc7 {[%emt 0:00:14]} 24. Rc1 {[%emt 0:01:28]} Kf7 {[%emt 0:00:26]} 25. Rab1 {[%emt 0:00:23]} Ke6 {[%emt 0:00:07]} 26. Kf1 {[%emt 0:00:54]} Rb7 {[%emt 0:00:13]} 27. Nd2 {[%emt 0:00:08][%cal Bc4d2,Bd2b3,Bb3a5][%mdl 32]} Rfb8 {[%emt 0:00:14]} 28. Nb3 {[%emt 0:01:54] [#] aiming for Nc5+.} Bd6 {[%emt 0:00:13]} 29. Na5 {[%emt 0:00:41]} Rb6 {[%emt 0:00:13][%cal Rd6b4]} 30. Nc4 {[%emt 0:00:54]} R6b7 {[%emt 0:00:02][%cal Rd6b4]} 31. Nxd6 {[%emt 0:00:45]} Kxd6 {[%emt 0:00:01]} 32. Rd1+ {[%emt 0:00:06]} (32. Rc5 $16) 32... Ke6 $11 {[%emt 0:00:23][%cal Oc6c5,Bd6e6,Be6d7,Bd7c7,Bc7b7][%mdl 32]} 33. Rbc1 {[%emt 0:00:02]} Rd7 {[%emt 0:00:06]} 34. Rxd7 {[%emt 0:00:06]} Kxd7 {[%emt 0:00:02][%mdl 4096] Endgame KRB-KRN} 35. e4 {[%emt 0:00:01]} Nc8 {[%emt 0:00:14]} 36. Rd1+ {[%emt 0:01:05]} Kc7 {[%emt 0:00:10]} 37. Ke2 {[%emt 0:01:58]} Nb6 {[%emt 0:00:14]} 38. Ra1 {[%emt 0:00:01]} Kb7 {[%emt 0:00:15]} 39. Bc3 {[%emt 0:00:43]} Rd8 {[%emt 0:00:06]} 40. g3 {[%emt 0:00:08]} Rd7 {[%emt 0:00:17]} 41. f4 {[%emt 0:00:07]} Nc4 {[%emt 0:00:14]} 42. Rf1 {[%emt 0:00:44]} Nb6 {[%emt 0:00:09]} 43. a5 {[%emt 0:00:35]} Nc4 {[%emt 0:00:07]} (43... Na4 $11 44. Ba1 exf4) 44. fxe5 $16 {[%emt 0:00:02]} Nxe5 {[%emt 0:00:03]} (44... fxe5 $16 {was called for.} 45. Rf8 Re7) 45. Bxe5 $18 {[%emt 0:00:05]} fxe5 $16 {[%emt 0:00:04] KR-KR} 46. Rf5 {[%emt 0:00:02]} Rd4 $2 {[%emt 0:00:22] Loses the game.} (46... Kc8 $16) 47. Rxe5 $18 {[%emt 0:00:21]} Rxb4 {[%emt 0:00:01]} 48. Re7+ {[%emt 0:00:17]} Kc8 {[%emt 0:00:23]} 49. Ke3 {[%emt 0:00:53]} ({Less strong is} 49. Rxg7 Rxe4+ 50. Kf3 Ra4 $16) 49... g5 {[%emt 0:00:01]} 50. Rxh7 {[%emt 0:00:04]} Rb5 $2 {[%emt 0:00:02]} (50... c5 51. Rh5 Rb3+ 52. Kd2 Kc7 53. Rxg5 Kd6) 51. h4 {[%emt 0:00:17]} gxh4 {[%emt 0:00:04]} 52. gxh4 {[%emt 0:00:02][%cal Bg3h4,Bh4h5,Bh5h6][%mdl 32]} Rxa5 {[%emt 0:00:02]} 53. h5 {[%emt 0:00:03] Strongly threatening Kf4.} Ra1 {[%emt 0:00:32]} 54. h6 {[%emt 0:00:01] Intending Ra7 and mate.} Rh1 {[%emt 0:00:11]} 55. Kf4 {[%emt 0:00:53] And now Rh8+ would win.} a5 {[%emt 0:00:03]} 56. Kg5 {[%emt 0:00:01]} Rg1+ {[%emt 0:00:07]} 57. Kf6 {[%emt 0:00:03]} (57. Kf5 $142 {White wants to mate with Ra7.} Rf1+ 58. Kg5 Rg1+ 59. Kf4 Rf1+ 60. Kg3) 57... Rf1+ {[%emt 0:00:06]} 58. Ke6 {[%emt 0:00:11] Threatening mate with Ra7.} Kb8 {[%emt 0:00:31] Against Ra7} (58... Rh1 $18 59. Kd6 a4) 59. Rg7 {[%emt 0:00:03] White mates.} Rh1 {[%emt 0:00:13]} 60. h7 {[%emt 0:00:02]} a4 {[%emt 0:00:04]} 61. Rg8+ {[%emt 0:00:02] Weighted Error Value: White=0.17 (very precise) /Black=0.41} 1-0

[Event "Chinese League Div-A Rapid 2022"]
[Site "Fuling,Chongqing"]
[Date "2022.09.06"]
[Round "1.10"]
[White "Yuan, Ye"]
[Black "Ren, Xiaoyi"]
[Result "1/2-1/2"]
[ECO "D43"]
[WhiteElo "2108"]
[BlackElo "2250"]
[Annotator "RC"]
[PlyCount "67"]
[EventDate "2022.09.07"]
[EventType "team-tourn"]
[EventCountry "CHN"]
[SourceTitle "playchess.com"]
[Source "ChessBase"]
[SourceQuality "1"]
[TimeControl "1500+10"]

1. d4 {[%emt 0:00:02]} d5 {[%emt 0:00:04]} 2. c4 {[%emt 0:00:02]} e6 {[%emt 0:00:02]} 3. Nc3 {[%emt 0:00:03]} c6 {[%emt 0:00:02]} 4. Nf3 {[%emt 0:00:02]} Nf6 {[%emt 0:00:02]} 5. Bg5 {[%emt 0:00:05]} h6 {[%emt 0:00:11]} 6. Bh4 {[%emt 0:00:13]} dxc4 {[%emt 0:00:04]} 7. e4 {[%emt 0:00:10]} g5 {[%emt 0:00:10]} 8. Bg3 {[%emt 0:00:06]} b5 {[%emt 0:00:04]} 9. Be2 {[%emt 0:00:52]} Bb7 {[%emt 0:00:09]} 10. h4 {[%emt 0:00:49]} g4 {[%emt 0:01:51]} 11. Ne5 {[%emt 0:00:21]} Nbd7 {[%emt 0:00:51]} 12. Nxd7 {[%emt 0:02:13]} Qxd7 {[%emt 0:00:09]} 13. Be5 {[%emt 0:00:42]} Qe7 {[%emt 0:01:09]} 14. O-O {[%emt 0:01:29]} Rg8 {[%emt 0:02:55]} 15. b3 {[%emt 0:01:57]} Bg7 {[%emt 0:00:33]} 16. Qc2 {[%emt 0:02:10]} Nh5 {[%emt 0:03:52]} 17. Bxg7 {[%emt 0:00:33]} Rxg7 {[%emt 0:00:03]} 18. g3 {[%emt 0:00:05]} Qd6 {[%emt 0:00:10]} 19. e5 {[%emt 0:03:41]} Qxd4 {[%emt 0:00:09]} 20. Ne4 {[%emt 0:00:18]} Kf8 {[%emt 0:00:08]} 21. Rad1 {[%emt 0:01:42]} Qxe5 {[%emt 0:00:07]} 22. Rfe1 {[%emt 0:00:03]} c5 {[%emt 0:00:59]} 23. Bxc4 {[%emt 0:01:10]} bxc4 {[%emt 0:00:39]} 24. Nd6 {[%emt 0:00:05]} Qf6 {[%emt 0:00:20]} 25. Nxb7 {[%emt 0:00:20]} Qf3 {[%emt 0:00:36]} 26. Qd2 {[%emt 0:02:24]} Qxb7 {[%emt 0:00:20]} 27. Qxh6 {[%emt 0:00:02]} Nxg3 {[%emt 0:00:06]} 28. fxg3 {[%emt 0:00:05]} Qf3 {[%emt 0:00:25]} 29. Qh8+ {[%emt 0:00:17]} Ke7 {[%emt 0:00:43]} 30. Qxg7 {[%emt 0:00:06]} Qxg3+ {[%emt 0:00:03]} 31. Kh1 {[%emt 0:00:05]} Qh3+ {[%emt 0:00:09]} 32. Kg1 {[%emt 0:00:02]} Qg3+ {[%emt 0:00:02]} 33. Kh1 {[%emt 0:00:01]} Qh3+ {[%emt 0:00:03]} 34. Kg1 {[%emt 0:00:26]} 1/2-1/2